[Event "European Women's Chess Championship (49-84)"]
[Site "Batumi, Georgia"]
[Date "2026.05.25"]
[Round "1.66"]
[White "Nahapetyan, Ani"]
[Black "Kirtadze, Anastasia"]
[Result "0-1"]
[TimeControl "90min /40moves + 30min + 30-sec increment from move 1"]
[WhiteTitle "-"]
[BlackTitle "-"]
[WhiteFideId "13317776"]
[BlackFideId "13622714"]
[WhiteElo "1827"]
[BlackElo "2233"]

1. e4 {[%clk 01:30:55]} {[%emt 00:00:04]} c5 {[%emt 00:00:08]} 2. Nf3 {[%clk
01:31:20]} {[%emt 00:00:03]} d6 {[%clk 01:31:01]} {[%emt 00:00:25]} 3. d4
{[%clk 01:31:44]} {[%emt 00:00:05]} cxd4 {[%clk 01:31:26]} {[%emt 00:00:05]} 4.
Nxd4 {[%clk 01:32:11]} {[%emt 00:00:03]} Nf6 {[%clk 01:31:43]} {[%emt
00:00:13]} 5. Nc3 {[%clk 01:32:35]} {[%emt 00:00:06]} a6 {[%clk 01:32:07]}
{[%emt 00:00:07]} 6. Bd3 {[%clk 01:32:46]} {[%emt 00:00:18]} e5 {[%clk
01:32:27]} {[%emt 00:00:11]} 7. Nde2 {[%clk 01:33:09]} {[%emt 00:00:05]} Be7
{[%clk 01:31:49]} {[%emt 00:01:10]} 8. O-O {[%clk 01:33:28]} {[%emt 00:00:10]}
O-O {[%clk 01:32:14]} {[%emt 00:00:06]} 9. Ng3 {[%clk 01:33:48]} {[%emt
00:00:09]} Bg4 {[%clk 01:32:30]} {[%emt 00:00:14]} 10. f3 {[%clk 01:31:10]}
{[%emt 00:03:08]} Be6 {[%clk 01:32:44]} {[%emt 00:00:17]} 11. Nd5 {[%clk
01:29:19]} {[%emt 00:02:20]} Nxd5 {[%clk 01:23:25]} {[%emt 00:09:49]} 12. exd5
{[%clk 01:29:37]} {[%emt 00:00:12]} Bxd5 {[%clk 01:23:38]} {[%emt 00:00:17]} 13.
Bxh7+ {[%clk 01:29:53]} {[%emt 00:00:13]} Kxh7 {[%clk 01:24:04]} {[%emt
00:00:05]} 14. Qxd5 {[%clk 01:30:15]} {[%emt 00:00:08]} Nc6 {[%clk 01:16:30]}
{[%emt 00:08:05]} 15. Nf5 {[%clk 01:24:25]} {[%emt 00:06:19]} Rc8 {[%clk
01:10:20]} {[%emt 00:06:40]} 16. c3 {[%clk 01:19:00]} {[%emt 00:05:55]} g6
{[%clk 01:04:45]} {[%emt 00:06:06]} 17. Nxe7 {[%clk 01:17:36]} {[%emt
00:01:54]} Qb6+ {[%clk 01:04:28]} {[%emt 00:00:47]} 18. Kh1 {[%clk 01:15:57]}
{[%emt 00:02:07]} Nxe7 {[%clk 01:04:48]} {[%emt 00:00:11]} 19. Qe4 {[%clk
01:13:57]} {[%emt 00:02:29]} Nf5 {[%clk 00:58:52]} {[%emt 00:06:28]} 20. g4
{[%clk 01:08:30]} {[%emt 00:05:57]} Ng7 {[%clk 00:54:28]} {[%emt 00:04:53]} 21.
Qe3 {[%clk 01:00:27]} {[%emt 00:08:33]} Qc6 {[%clk 00:46:02]} {[%emt 00:08:57]}
22. Qh6+ {[%clk 00:57:36]} {[%emt 00:03:19]} Kg8 {[%clk 00:45:55]} {[%emt
00:00:38]} 23. Bg5 {[%clk 00:53:39]} {[%emt 00:04:27]} f6 {[%clk 00:44:35]}
{[%emt 00:01:50]} 24. Be3 {[%clk 00:53:19]} {[%emt 00:00:50]} Kf7 {[%clk
00:44:32]} {[%emt 00:00:34]} 25. Qh3 {[%clk 00:53:18]} {[%emt 00:00:30]} Rh8
{[%clk 00:41:20]} {[%emt 00:03:43]} 26. Qg2 {[%clk 00:53:28]} {[%emt 00:00:16]}
Rh7 {[%clk 00:39:44]} {[%emt 00:02:09]} 27. f4 {[%clk 00:51:57]} {[%emt
00:02:01]} Rch8 {[%clk 00:38:04]} {[%emt 00:02:10]} 28. Bg1 {[%clk 00:51:24]}
{[%emt 00:01:02]} e4 {[%clk 00:37:25]} {[%emt 00:01:10]} 29. f5 {[%clk
00:49:31]} {[%emt 00:02:23]} gxf5 {[%clk 00:36:40]} {[%emt 00:01:15]} 30. gxf5
{[%clk 00:48:37]} {[%emt 00:01:24]} Rh5 {[%clk 00:33:02]} {[%emt 00:04:08]} 31.
Rf4 {[%clk 00:41:59]} {[%emt 00:07:09]} Nxf5 {[%clk 00:25:26]} {[%emt
00:08:06]} 32. Raf1 {[%clk 00:39:17]} {[%emt 00:03:11]} Rg8 {[%clk 00:23:34]}
{[%emt 00:02:23]} 33. Rg4 {[%clk 00:38:45]} {[%emt 00:01:02]} Rxg4 {[%clk
00:22:13]} {[%emt 00:01:50]} 34. Qxg4 {[%clk 00:39:09]} {[%emt 00:00:06]} e3+
{[%clk 00:19:41]} {[%emt 00:03:02]} 35. Rf3 {[%clk 00:39:10]} {[%emt 00:00:29]}
Rg5 {[%clk 00:18:08]} {[%emt 00:02:04]} 36. Qf4 {[%clk 00:39:07]} {[%emt
00:00:33]} Kg8 {[%clk 00:16:54]} {[%emt 00:01:43]} 37. Bxe3 {[%clk 00:32:48]}
{[%emt 00:06:49]} Nh4 {[%clk 00:15:03]} {[%emt 00:02:22]} 38. Qxf6 {[%clk
00:33:07]} {[%emt 00:00:11]} Qxf3+ {[%clk 00:09:55]} {[%emt 00:05:38]} 39. Qxf3
{[%clk 00:33:31]} {[%emt 00:00:06]} Nxf3 {[%clk 00:10:19]} {[%emt 00:00:05]} 40.
Bxg5 {[%clk 00:33:57]} {[%emt 00:00:04]} Nxg5 {[%clk 00:10:41]} {[%emt
00:00:09]} 41. h4 {[%clk 00:34:17]} {[%emt 00:00:10]} Nf3 {[%clk 00:10:25]}
{[%emt 00:00:46]} 42. h5 {[%clk 00:34:39]} {[%emt 00:00:07]} Kg7 {[%clk
00:08:17]} {[%emt 00:02:38]} 43. Kg2 {[%clk 00:32:40]} {[%emt 00:02:28]} Ne5
{[%clk 00:05:32]} {[%emt 00:03:17]} 44. b4 {[%clk 00:30:27]} {[%emt 00:02:42]}
Kh6 {[%clk 00:05:28]} {[%emt 00:00:34]} 0-1

[Event "European Women's Chess Championship (49-84)"]
[Site "Batumi, Georgia"]
[Date "2026.05.25"]
[Round "1.67"]
[White "Orian, Noga"]
[Black "Chkhartishvili, Lika"]
[Result "1-0"]
[TimeControl "90min /40moves + 30min + 30-sec increment from move 1"]
[WhiteTitle "-"]
[BlackTitle "-"]
[WhiteFideId "2836475"]
[BlackFideId "13635166"]
[WhiteElo "2231"]
[BlackElo "1822"]

1. d4 {[%clk 01:30:57]} {[%emt 00:00:02]} d5 {[%clk 01:30:54]} {[%emt
00:00:06]} 2. c4 {[%clk 01:31:19]} {[%emt 00:00:08]} e6 {[%clk 01:31:20]}
{[%emt 00:00:05]} 3. Nf3 {[%clk 01:31:43]} {[%emt 00:00:05]} Nf6 {[%clk
01:31:42]} {[%emt 00:00:08]} 4. g3 {[%clk 01:32:09]} {[%emt 00:00:04]} Ne4
{[%clk 01:31:40]} {[%emt 00:00:33]} 5. Bg2 {[%clk 01:31:56]} {[%emt 00:00:43]}
Be7 {[%clk 01:31:59]} {[%emt 00:00:10]} 6. O-O {[%clk 01:31:04]} {[%emt
00:01:22]} f5 {[%clk 01:32:22]} {[%emt 00:00:08]} 7. Nc3 {[%clk 01:28:39]}
{[%emt 00:02:55]} c6 {[%clk 01:29:55]} {[%emt 00:02:57]} 8. Bf4 {[%clk
01:20:09]} {[%emt 00:09:00]} Nd7 {[%clk 01:25:00]} {[%emt 00:05:25]} 9. Qc1
{[%clk 01:16:28]} {[%emt 00:04:11]} h6 {[%clk 01:17:55]} {[%emt 00:07:34]} 10.
Ne5 {[%clk 01:07:50]} {[%emt 00:09:08]} g5 {[%clk 01:12:36]} {[%emt 00:05:50]}
11. Be3 {[%clk 01:01:54]} {[%emt 00:06:25]} h5 {[%clk 00:54:48]} {[%emt
00:18:19]} 12. Nxe4 {[%clk 00:49:48]} {[%emt 00:12:35]} dxe4 {[%clk 00:54:54]}
{[%emt 00:00:24]} 13. Ng6 {[%clk 00:44:04]} {[%emt 00:06:14]} Rg8 {[%clk
00:54:24]} {[%emt 00:00:59]} 14. Nxe7 {[%clk 00:44:30]} {[%emt 00:00:06]} Qxe7
{[%clk 00:54:46]} {[%emt 00:00:07]} 15. f3 {[%clk 00:38:54]} {[%emt 00:06:06]}
exf3 {[%clk 00:53:24]} {[%emt 00:01:52]} 16. Bxf3 {[%clk 00:39:18]} {[%emt
00:00:06]} g4 {[%clk 00:51:09]} {[%emt 00:02:45]} 17. Bg2 {[%clk 00:39:31]}
{[%emt 00:00:17]} Nf6 {[%clk 00:43:27]} {[%emt 00:08:12]} 18. Bg5 {[%clk
00:35:08]} {[%emt 00:04:52]} Bd7 {[%clk 00:40:35]} {[%emt 00:03:22]} 19. Bh4
{[%clk 00:31:52]} {[%emt 00:03:47]} Qg7 {[%clk 00:36:10]} {[%emt 00:04:55]} 20.
Qf4 {[%clk 00:28:10]} {[%emt 00:04:12]} Rc8 {[%clk 00:29:05]} {[%emt 00:07:35]}
21. Rad1 {[%clk 00:25:53]} {[%emt 00:02:47]} Nh7 {[%clk 00:25:09]} {[%emt
00:04:26]} 22. e4 {[%clk 00:23:46]} {[%emt 00:02:37]} Rf8 {[%clk 00:23:58]}
{[%emt 00:01:41]} 23. Qd6 {[%clk 00:19:38]} {[%emt 00:04:38]} Rf7 {[%clk
00:19:10]} {[%emt 00:05:19]} 24. exf5 {[%clk 00:18:32]} {[%emt 00:01:36]} Qf8
{[%clk 00:19:10]} {[%emt 00:00:28]} 25. Qe5 {[%clk 00:18:05]} {[%emt 00:00:57]}
Qh6 {[%clk 00:19:00]} {[%emt 00:00:40]} 26. Rde1 {[%clk 00:17:22]} {[%emt
00:01:13]} Nf8 {[%clk 00:18:43]} {[%emt 00:00:48]} 27. Qd6 {[%clk 00:14:02]}
{[%emt 00:03:50]} Qh7 {[%clk 00:16:31]} {[%emt 00:02:43]} 28. fxe6 {[%clk
00:14:12]} {[%emt 00:00:20]} Rxf1+ {[%clk 00:16:55]} {[%emt 00:00:06]} 29. Bxf1
{[%clk 00:14:01]} {[%emt 00:00:40]} Nxe6 {[%clk 00:16:57]} {[%emt 00:00:28]} 30.
Rxe6+ {[%clk 00:14:18]} {[%emt 00:00:13]} Bxe6 {[%clk 00:17:19]} {[%emt
00:00:08]} 31. Qxe6+ {[%clk 00:14:42]} {[%emt 00:00:06]} 1-0

[Event "European Women's Chess Championship (49-84)"]
[Site "Batumi, Georgia"]
[Date "2026.05.25"]
[Round "1.68"]
[White "Nadanyan, Kiti"]
[Black "Hryzlova, Sofiia"]
[Result "0-1"]
[TimeControl "90min /40moves + 30min + 30-sec increment from move 1"]
[WhiteTitle "-"]
[BlackTitle "-"]
[WhiteFideId "13316710"]
[BlackFideId "14174669"]
[WhiteElo "1801"]
[BlackElo "2226"]

1. e4 {[%clk 01:30:57]} {[%emt 00:00:02]} c5 {[%clk 01:30:56]} {[%emt
00:00:05]} 2. Nc3 {[%clk 01:31:10]} {[%emt 00:00:17]} a6 {[%clk 01:30:46]}
{[%emt 00:00:40]} 3. g3 {[%clk 01:30:45]} {[%emt 00:00:54]} Nc6 {[%clk
01:30:03]} {[%emt 00:01:13]} 4. Bg2 {[%clk 01:30:44]} {[%emt 00:00:30]} g6
{[%clk 01:30:14]} {[%emt 00:00:20]} 5. d3 {[%clk 01:29:57]} {[%emt 00:01:17]}
Bg7 {[%clk 01:30:11]} {[%emt 00:00:33]} 6. Be3 {[%clk 01:27:12]} {[%emt
00:03:16]} d6 {[%clk 01:28:55]} {[%emt 00:01:46]} 7. Nge2 {[%clk 01:25:03]}
{[%emt 00:02:38]} Nf6 {[%clk 01:28:45]} {[%emt 00:00:40]} 8. h3 {[%clk
01:24:45]} {[%emt 00:00:48]} O-O {[%clk 01:28:23]} {[%emt 00:00:52]} 9. Qd2
{[%clk 01:22:56]} {[%emt 00:02:20]} Nd4 {[%clk 01:26:32]} {[%emt 00:02:21]} 10.
Nxd4 {[%clk 01:21:28]} {[%emt 00:01:58]} cxd4 {[%clk 01:26:56]} {[%emt
00:00:06]} 11. Bxd4 {[%clk 01:21:48]} {[%emt 00:00:09]} Bd7 {[%clk 01:26:22]}
{[%emt 00:01:05]} 12. Be3 {[%clk 01:20:20]} {[%emt 00:01:57]} b5 {[%clk
01:24:45]} {[%emt 00:02:07]} 13. O-O {[%clk 01:14:05]} {[%emt 00:06:45]} Rc8
{[%clk 01:19:54]} {[%emt 00:05:21]} 14. f4 {[%clk 01:06:28]} {[%emt 00:08:08]}
Qc7 {[%clk 01:12:15]} {[%emt 00:08:09]} 15. a3 {[%clk 00:57:19]} {[%emt
00:09:40]} a5 {[%clk 01:05:24]} {[%emt 00:07:20]} 16. Qf2 {[%clk 00:47:02]}
{[%emt 00:10:46]} b4 {[%clk 00:56:41]} {[%emt 00:09:14]} 17. axb4 {[%clk
00:45:36]} {[%emt 00:01:56]} axb4 {[%clk 00:57:05]} {[%emt 00:00:05]} 18. Ra7
{[%clk 00:28:53]} {[%emt 00:17:13]} Qb8 {[%clk 00:57:19]} {[%emt 00:00:16]} 19.
Nd1 {[%clk 00:10:17]} {[%emt 00:19:06]} e5 {[%clk 00:51:31]} {[%emt 00:06:18]}
20. fxe5 {[%clk 00:09:19]} {[%emt 00:01:28]} dxe5 {[%clk 00:51:55]} {[%emt
00:00:07]} 21. Bc5 {[%clk 00:06:30]} {[%emt 00:03:18]} Rfe8 {[%clk 00:51:37]}
{[%emt 00:00:48]} 22. g4 {[%clk 00:02:35]} {[%emt 00:04:26]} Be6 {[%clk
00:49:48]} {[%emt 00:02:19]} 23. b3 {[%clk 00:01:15]} {[%emt 00:01:50]} Qb5
{[%clk 00:38:54]} {[%emt 00:11:23]} 24. Be3 {[%clk 00:00:32]} {[%emt 00:01:14]}
Qc6 {[%clk 00:38:58]} {[%emt 00:00:26]} 25. Ra2 {[%clk 00:00:43]} {[%emt
00:00:19]} Rc7 {[%clk 00:38:45]} {[%emt 00:00:43]} 26. Bb6 {[%clk 00:00:40]}
{[%emt 00:00:33]} Rb7 {[%clk 00:38:24]} {[%emt 00:00:50]} 27. Be3 {[%clk
00:00:52]} {[%emt 00:00:18]} Nd7 {[%clk 00:31:35]} {[%emt 00:07:19]} 28. Nb2
{[%clk 00:00:56]} {[%emt 00:00:26]} Bf8 {[%clk 00:31:44]} {[%emt 00:00:22]} 29.
Nc4 {[%clk 00:01:10]} {[%emt 00:00:16]} Bxc4 {[%clk 00:32:00]} {[%emt
00:00:14]} 30. dxc4 {[%clk 00:00:32]} {[%emt 00:01:08]} Nc5 {[%clk 00:32:21]}
{[%emt 00:00:08]} 31. Qf6 {[%clk 00:00:31]} {[%emt 00:00:31]} Qc7 {[%clk
00:27:25]} {[%emt 00:05:25]} 32. Rd1 {[%clk 00:00:31]} {[%emt 00:00:31]} Ne6
{[%clk 00:23:36]} {[%emt 00:04:19]} 33. Kh2 {[%clk 00:00:35]} {[%emt 00:00:26]}
Nf4 {[%clk 00:21:27]} {[%emt 00:02:40]} 34. Bf3 {[%clk 00:00:32]} {[%emt
00:00:33]} Ne6 {[%clk 00:19:46]} {[%emt 00:02:11]} 35. Bg2 {[%clk 00:00:54]}
{[%emt 00:00:08]} Nd4 {[%clk 00:15:13]} {[%emt 00:05:02]} 36. Kh1 {[%clk
00:00:43]} {[%emt 00:00:39]} Bc5 {[%clk 00:13:13]} {[%emt 00:02:32]} 37. Bh6
{[%clk 00:00:52]} {[%emt 00:00:21]} Bf8 {[%clk 00:13:11]} {[%emt 00:00:32]} 38.
Be3 {[%clk 00:00:36]} {[%emt 00:00:47]} Bg7 {[%clk 00:03:21]} {[%emt 00:10:20]}
39. Qf2 {[%clk 00:00:50]} {[%emt 00:00:15]} Ra7 {[%clk 00:03:28]} {[%emt
00:00:23]} 40. Rda1 {[%clk 00:00:32]} {[%emt 00:00:48]} Rea8 {[%clk 00:03:21]}
{[%emt 00:00:38]} 41. Rxa7 {[%clk 00:00:47]} {[%emt 00:00:15]} Rxa7 {[%clk
00:03:46]} {[%emt 00:00:04]} 42. Rxa7 {[%clk 00:02:08]} {[%emt 00:29:10]} Qxa7
{[%clk 00:34:02]} {[%emt 00:00:14]} 43. Bf1 {[%clk 00:02:12]} {[%emt 00:00:25]}
Qa1 {[%clk 00:26:40]} {[%emt 00:07:53]} 44. Kg2 {[%clk 00:02:35]} {[%emt
00:00:06]} Qc3 {[%clk 00:10:35]} {[%emt 00:16:36]} 45. Bxd4 {[%clk 00:02:28]}
{[%emt 00:00:37]} exd4 {[%clk 00:10:58]} {[%emt 00:00:06]} 46. Qe2 {[%clk
00:00:35]} {[%emt 00:02:23]} Be5 {[%clk 00:08:46]} {[%emt 00:02:42]} 47. Qf2
{[%clk 00:00:49]} {[%emt 00:00:16]} Kg7 {[%clk 00:08:24]} {[%emt 00:00:52]} 48.
Bd3 {[%clk 00:01:08]} {[%emt 00:00:11]} Qa1 {[%clk 00:07:33]} {[%emt 00:01:22]}
49. Qf1 {[%clk 00:00:31]} {[%emt 00:01:06]} Qa5 {[%clk 00:07:55]} {[%emt
00:00:08]} 50. g5 {[%clk 00:00:31]} {[%emt 00:00:30]} Qc7 {[%clk 00:06:07]}
{[%emt 00:02:18]} 51. h4 {[%clk 00:00:35]} {[%emt 00:00:26]} Bf4 {[%clk
00:04:13]} {[%emt 00:02:24]} 52. c5 {[%clk 00:00:36]} {[%emt 00:00:30]} Be5
{[%clk 00:03:04]} {[%emt 00:01:38]} 53. Bc4 {[%clk 00:01:00]} {[%emt 00:00:06]}
f6 {[%clk 00:03:31]} {[%emt 00:00:03]} 54. Bd5 {[%clk 00:00:32]} {[%emt
00:01:00]} fxg5 {[%clk 00:02:45]} {[%emt 00:01:15]} 55. hxg5 {[%clk 00:00:47]}
{[%emt 00:00:14]} Qe7 {[%clk 00:02:48]} {[%emt 00:00:28]} 56. Qc1 {[%clk
00:00:32]} {[%emt 00:00:45]} Qxc5 {[%clk 00:03:09]} {[%emt 00:00:09]} 57. Qd2
{[%clk 00:00:31]} {[%emt 00:00:30]} Qe7 {[%clk 00:03:00]} {[%emt 00:00:38]} 58.
Kh3 {[%clk 00:00:32]} {[%emt 00:00:29]} Qf8 {[%clk 00:02:48]} {[%emt 00:00:41]}
59. Kg2 {[%clk 00:00:34]} {[%emt 00:00:31]} Qd8 {[%clk 00:01:53]} {[%emt
00:01:23]} 60. Qc1 {[%clk 00:00:44]} {[%emt 00:00:20]} Qc8 {[%clk 00:01:59]}
{[%emt 00:00:24]} 61. Qd1 {[%clk 00:00:32]} {[%emt 00:00:41]} Qc3 {[%clk
00:01:59]} {[%emt 00:00:33]} 62. Qd3 {[%clk 00:00:32]} {[%emt 00:00:30]} Qe1
{[%clk 00:01:45]} {[%emt 00:00:43]} 63. Qf3 {[%clk 00:00:32]} {[%emt 00:00:31]}
Qd2+ {[%clk 00:01:58]} {[%emt 00:00:16]} 64. Kf1 {[%clk 00:00:32]} {[%emt
00:00:30]} Qc1+ {[%clk 00:02:09]} {[%emt 00:00:19]} 65. Kf2 {[%clk 00:00:31]}
{[%emt 00:00:31]} Qxc2+ {[%clk 00:02:27]} {[%emt 00:00:12]} 66. Kf1 {[%clk
00:00:32]} {[%emt 00:00:28]} Qc1+ {[%clk 00:02:43]} {[%emt 00:00:15]} 67. Ke2
{[%clk 00:00:32]} {[%emt 00:00:30]} Qxg5 {[%clk 00:01:56]} {[%emt 00:01:17]} 68.
Qf7+ {[%clk 00:00:33]} {[%emt 00:00:29]} Kh6 {[%clk 00:02:21]} {[%emt
00:00:05]} 69. Qf8+ {[%clk 00:00:34]} {[%emt 00:00:29]} Kh5 {[%clk 00:02:38]}
{[%emt 00:00:13]} 70. Qf3+ {[%clk 00:00:32]} {[%emt 00:00:33]} Qg4 {[%clk
00:02:52]} {[%emt 00:00:15]} 71. Be6 {[%clk 00:00:32]} {[%emt 00:00:31]} Qxf3+
{[%clk 00:03:14]} {[%emt 00:00:07]} 72. Kxf3 {[%clk 00:01:00]} {[%emt
00:00:02]} Kg5 {[%clk 00:03:34]} {[%emt 00:00:10]} 73. Bd7 {[%clk 00:00:40]}
{[%emt 00:00:50]} Kh4 {[%clk 00:03:45]} {[%emt 00:00:19]} 74. Be8 {[%clk
00:00:31]} {[%emt 00:00:39]} g5 {[%clk 00:04:08]} {[%emt 00:00:06]} 75. Bd7
{[%emt 00:00:31]} h5 {[%clk 00:04:32]} {[%emt 00:00:04]} 76. Kg2 {[%clk
00:00:32]} {[%emt 00:00:30]} g4 {[%clk 00:04:55]} {[%emt 00:00:07]} 77. Bb5
{[%clk 00:00:32]} {[%emt 00:00:31]} Kg5 {[%clk 00:05:18]} {[%emt 00:00:06]} 78.
Be8 {[%emt 00:00:32]} h4 {[%clk 00:05:28]} {[%emt 00:00:18]} 79. Bd7 {[%clk
00:00:32]} {[%emt 00:00:31]} Kf4 {[%clk 00:05:15]} {[%emt 00:00:43]} 80. Be6
{[%clk 00:00:32]} {[%emt 00:00:30]} h3+ {[%clk 00:05:22]} {[%emt 00:00:23]} 81.
Kf1 {[%clk 00:00:32]} {[%emt 00:00:30]} Kf3 {[%clk 00:05:22]} {[%emt 00:00:30]}
82. Kg1 {[%clk 00:00:31]} {[%emt 00:00:30]} d3 {[%clk 00:05:29]} {[%emt
00:00:24]} 0-1

[Event "European Women's Chess Championship (49-84)"]
[Site "Batumi, Georgia"]
[Date "2026.05.25"]
[Round "1.69"]
[White "Kubicka, Anna"]
[Black "Gharibyan, Mane"]
[Result "1-0"]
[TimeControl "90min /40moves + 30min + 30-sec increment from move 1"]
[WhiteTitle "-"]
[BlackTitle "-"]
[WhiteFideId "1152254"]
[BlackFideId "13306430"]
[WhiteElo "2226"]
[BlackElo "1776"]

1. e4 {[%clk 01:30:52]} {[%emt 00:00:06]} c5 {[%clk 01:30:39]} {[%emt
00:00:22]} 2. Nc3 {[%clk 01:31:08]} {[%emt 00:00:14]} d6 {[%clk 01:30:13]}
{[%emt 00:00:57]} 3. d4 {[%clk 01:31:26]} {[%emt 00:00:11]} cxd4 {[%clk
01:28:03]} {[%emt 00:02:40]} 4. Qxd4 {[%clk 01:31:49]} {[%emt 00:00:07]} a6
{[%clk 01:24:01]} {[%emt 00:04:32]} 5. Be3 {[%clk 01:27:32]} {[%emt 00:04:47]}
Nc6 {[%clk 01:12:44]} {[%emt 00:11:47]} 6. Qc4 {[%clk 01:16:40]} {[%emt
00:11:22]} Nf6 {[%clk 01:01:39]} {[%emt 00:11:35]} 7. Nd5 {[%clk 01:13:21]}
{[%emt 00:03:49]} Nd7 {[%clk 00:53:53]} {[%emt 00:08:16]} 8. Qb3 {[%clk
00:58:27]} {[%emt 00:15:24]} e6 {[%clk 00:42:52]} {[%emt 00:11:30]} 9. Nb6
{[%clk 00:54:40]} {[%emt 00:04:18]} Nxb6 {[%clk 00:36:06]} {[%emt 00:07:16]} 10.
Bxb6 {[%clk 00:51:09]} {[%emt 00:04:00]} Qh4 {[%clk 00:32:06]} {[%emt
00:04:31]} 11. Qe3 {[%clk 00:46:05]} {[%emt 00:05:33]} Be7 {[%clk 00:15:12]}
{[%emt 00:17:25]} 12. Nf3 {[%clk 00:37:24]} {[%emt 00:09:10]} Qf6 {[%clk
00:11:54]} {[%emt 00:03:48]} 13. O-O-O {[%clk 00:35:57]} {[%emt 00:01:57]} O-O
{[%clk 00:06:56]} {[%emt 00:05:29]} 14. g4 {[%clk 00:34:18]} {[%emt 00:02:09]}
Bd8 {[%clk 00:03:11]} {[%emt 00:04:15]} 15. Bxd8 {[%clk 00:31:17]} {[%emt
00:03:30]} Rxd8 {[%clk 00:02:55]} {[%emt 00:00:47]} 16. g5 {[%clk 00:30:55]}
{[%emt 00:00:52]} Qe7 {[%clk 00:02:42]} {[%emt 00:00:43]} 17. h4 {[%clk
00:30:04]} {[%emt 00:01:21]} e5 {[%clk 00:00:58]} {[%emt 00:02:14]} 18. h5
{[%clk 00:23:58]} {[%emt 00:06:35]} Bg4 {[%clk 00:00:47]} {[%emt 00:00:42]} 19.
g6 {[%clk 00:22:30]} {[%emt 00:01:58]} Rac8 {[%clk 00:00:37]} {[%emt 00:00:40]}
20. Bc4 {[%clk 00:18:38]} {[%emt 00:04:22]} Qf6 {[%clk 00:00:34]} {[%emt
00:00:33]} 21. Bxf7+ {[%clk 00:10:36]} {[%emt 00:08:32]} Kh8 {[%clk 00:00:37]}
{[%emt 00:00:27]} 22. h6 {[%clk 00:10:22]} {[%emt 00:00:43]} Qxf3 {[%clk
00:00:33]} {[%emt 00:00:34]} 23. hxg7+ {[%clk 00:09:34]} {[%emt 00:01:19]} Kxg7
{[%clk 00:01:00]} {[%emt 00:00:03]} 24. Qh6+ {[%clk 00:08:27]} {[%emt
00:01:36]} Kf6 {[%clk 00:01:25]} {[%emt 00:00:05]} 25. Qh4+ {[%clk 00:08:06]}
{[%emt 00:00:50]} Kg7 {[%clk 00:01:51]} {[%emt 00:00:05]} 26. Qxh7+ {[%clk
00:05:01]} {[%emt 00:03:35]} Kf6 {[%clk 00:00:43]} {[%emt 00:01:37]} 27. Bb3
{[%clk 00:03:30]} {[%emt 00:02:02]} Rh8 {[%clk 00:00:33]} {[%emt 00:00:40]} 28.
Qf7+ {[%clk 00:03:18]} {[%emt 00:00:42]} Kg5 {[%clk 00:00:58]} {[%emt
00:00:05]} 29. Qxf3 {[%clk 00:02:58]} {[%emt 00:00:50]} Bxf3 {[%clk 00:01:19]}
{[%emt 00:00:09]} 30. Rdg1+ {[%clk 00:02:40]} {[%emt 00:00:48]} Bg4 {[%clk
00:00:31]} {[%emt 00:01:19]} 31. Rxh8 {[%clk 00:02:51]} {[%emt 00:00:18]} Rxh8
{[%clk 00:00:55]} {[%emt 00:00:05]} 32. g7 {[%clk 00:03:05]} {[%emt 00:00:16]}
Rd8 {[%clk 00:00:37]} {[%emt 00:00:48]} 33. f3 {[%clk 00:03:00]} {[%emt
00:00:36]} Ne7 {[%clk 00:00:34]} {[%emt 00:00:33]} 34. Rxg4+ {[%clk 00:03:24]}
{[%emt 00:00:06]} Kf6 {[%clk 00:00:59]} {[%emt 00:00:05]} 35. g8=Q {[%clk
00:03:43]} {[%emt 00:00:11]} 1-0